[Event "MCC Labor Day Schev 2024"]
[Site "New York"]
[Date "2024.08.31"]
[Round "4.1"]
[White "Almeida Saenz, Alfonso"]
[Black "Zhao, Alex"]
[Result "1/2-1/2"]
[ECO "B07"]
[WhiteElo "2202"]
[BlackElo "2043"]
[Annotator "RC"]
[PlyCount "74"]
[EventDate "2024.08.28"]
[EventType "schev"]
[EventCountry "USA"]
[SourceTitle "playchess.com"]
[Source "ChessBase"]
[SourceQuality "1"]
[TimeControl "5400+30"]

1. d4 {[%emt 0:10:16]} d6 {[%emt 0:00:31]} 2. e4 {[%emt 0:00:16]} Nf6 {[%emt 0:00:07]} 3. Nc3 {[%emt 0:00:07]} g6 {[%emt 0:00:05]} 4. Bg5 {[%emt 0:00:21]} Bg7 {[%emt 0:00:11]} 5. f3 {[%emt 0:00:13]} c6 {[%emt 0:04:01]} 6. Bc4 {[%emt 0:01:02]} h6 {[%emt 0:08:17]} 7. Be3 {[%emt 0:00:18]} b5 {[%emt 0:07:22]} 8. Bb3 {[%emt 0:01:52]} Nbd7 {[%emt 0:03:02]} 9. Qd2 {[%emt 0:00:30]} Bb7 {[%emt 0:19:04]} 10. a3 {[%emt 0:00:34]} Qc7 {[%emt 0:03:52]} 11. Nge2 {[%emt 0:00:23]} a6 {[%emt 0:01:47]} 12. f4 {[%emt 0:00:23]} c5 {[%emt 0:01:35]} 13. e5 {[%emt 0:00:06]} Ne4 {[%emt 0:13:21]} 14. Nxe4 {[%emt 0:00:16]} Bxe4 {[%emt 0:00:03]} 15. Ng3 {[%emt 0:00:08]} Bb7 {[%emt 0:04:29]} 16. c3 {[%emt 0:02:48]} c4 {[%emt 0:10:45]} 17. Bc2 {[%emt 0:00:07]} e6 {[%emt 0:00:10]} 18. O-O {[%emt 0:00:24]} Nb6 {[%emt 0:02:47]} 19. f5 {[%emt 0:03:22]} exf5 {[%emt 0:01:48]} 20. exd6 {[%emt 0:00:22]} Qxd6 {[%emt 0:01:31]} 21. Bf4 {[%emt 0:00:21]} Qd5 {[%emt 0:04:05]} 22. Rae1+ {[%emt 0:00:12]} Kf8 {[%emt 0:02:38]} 23. Bc7 {[%emt 0:02:58]} Nd7 {[%emt 0:01:06]} 24. Bxf5 {[%emt 0:00:37]} gxf5 {[%emt 0:03:05]} 25. Nxf5 {[%emt 0:00:07]} Bf6 {[%emt 0:02:03]} 26. Rf3 {[%emt 0:00:25]} Bg5 {[%emt 0:02:03]} 27. Qf2 {[%emt 0:00:27]} Rh7 {[%emt 0:01:52]} 28. h4 {[%emt 0:02:42]} Bf6 {[%emt 0:00:13]} 29. Bd6+ {[%emt 0:03:00]} Kg8 {[%emt 0:00:14]} 30. Be7 {[%emt 0:00:09]} Kh8 {[%emt 0:00:51]} 31. Ne3 {[%emt 0:00:11]} Qxf3 {[%emt 0:01:11]} 32. gxf3 {[%emt 0:00:10]} Bxe7 {[%emt 0:00:23]} 33. Nf5 {[%emt 0:00:36]} Rg8+ {[%emt 0:00:51]} 34. Kf1 {[%emt 0:00:08]} Bf6 {[%emt 0:01:03]} 35. Re3 {[%emt 1:12:09]} Nb6 {[%emt 0:00:17]} 36. Qh2 {[%emt 0:00:00]} Nd5 {[%emt 0:00:12]} 37. Re4 {[%emt 0:00:00]} Bc8 {[%emt 0:00:50]} 1/2-1/2

[Event "MCC Labor Day Schev 2024"]
[Site "New York"]
[Date "2024.08.31"]
[Round "4.2"]
[White "Mottola, Max"]
[Black "Rohde, Michael"]
[Result "1/2-1/2"]
[ECO "B13"]
[WhiteElo "2103"]
[BlackElo "2280"]
[Annotator "TA"]
[PlyCount "59"]
[EventDate "2024.08.28"]
[EventType "schev"]
[EventCountry "USA"]
[SourceTitle "playchess.com"]
[Source "ChessBase"]
[SourceQuality "1"]
[TimeControl "5400+30"]

{[%evp 11,59,12,17,10,8,15,35,33,47,24,27,22,36,35,50,47,34,11,30,31,48,10,30,16,24,30,25,19,34,21,29,27,29,3,3,0,0,0,0,0,15,14,6,7,8,0,27,0,1,0]} 1. e4 {[%emt 0:02:41]} c6 {[%emt 0:20:10]} 2. d4 {[%emt 0:00:09]} d5 {[%emt 0:00:03]} 3. exd5 {[%emt 0:00:29]} cxd5 {[%emt 0:00:06]} 4. Bd3 {[%emt 0:00:08]} Nc6 {[%emt 0:00:23]} 5. c3 {[%emt 0:00:11]} Qc7 {[%emt 0:01:22]} 6. Ne2 {[%emt 0:00:22]} Bg4 {[%emt 0:00:42]} 7. O-O {[%emt 0:00:33]} e6 {[%emt 0:01:49]} 8. Qe1 $1 {[%emt 0:00:13]} Bxe2 {[%emt 0:14:51]} 9. Qxe2 {[%emt 0:00:42] White is slightly better.} Bd6 {[%emt 0:00:22]} 10. g3 {[%emt 0:00:38]} Nf6 {[%emt 0:10:21]} 11. Nd2 {[%emt 0:03:07][%cal Bb1d2,Bd2f3,Bf3d4,Bd4f5,Bf5d6,Bd6e8,Be8c7,Bc7d5][%mdl 32]} O-O {[%emt 0:01:40]} 12. Nf3 {[%emt 0:04:30]} e5 {[%emt 0:06:31]} 13. dxe5 {[%emt 0:01:53]} Nxe5 {[%emt 0:00:12]} 14. Nd4 {[%emt 0:07:19]} Nxd3 {[%emt 0:10:53]} 15. Qxd3 {[%emt 0:00:09]} Qc4 {[%emt 0:04:10]} 16. Qf3 {[%emt 0:09:50]} (16. Qxc4 {simplifies} dxc4 17. Nf5 Bc5 18. Be3) 16... Rfe8 {[%emt 0:03:20]} 17. Nf5 {[%emt 0:10:49]} (17. Be3 {simplifies} Be5 18. Rfd1 Rad8 19. a4) 17... Bc5 {[%emt 0:04:58]} (17... Re6 {simplifies} 18. Nxd6 Rxd6 19. Re1 Re6) 18. Be3 {[%emt 0:07:50]} Bxe3 {[%emt 0:01:21]} 19. Nd6 {[%emt 0:16:08]} Qg4 {[%emt 0:08:18]} 20. Qxg4 {[%emt 0:01:42]} Nxg4 {[%emt 0:01:24][%cal Bf6g4,Bg4f2,Bf2h3,Bh3g5,Bg5e4][%mdl 32]} 21. Nxe8 {[%emt 0:00:35] [#] Threatens to win with Nc7.} Bxf2+ {[%emt 0:00:23]} 22. Rxf2 {[%emt 0:06:07]} (22. Kh1 $5) 22... Nxf2 $14 {[%emt 0:02:42][%mdl 4096] Endgame. KRN-KRN} (22... Rxe8 $2 {loses.} 23. Rd2 $18) 23. Nc7 {[%emt 0:01:11]} Rc8 {[%emt 0:00:35]} 24. Nxd5 {[%emt 0:01:08] Ne7+ would now be deadly.} Rd8 {[%emt 0:01:06]} 25. c4 {[%emt 0:02:42]} Nh3+ {[%emt 0:02:13]} 26. Kg2 {[%emt 0:01:06]} Ng5 {[%emt 0:00:04]} 27. Rd1 {[%emt 0:03:22]} Kf8 {[%emt 0:00:58]} 28. b4 {[%emt 0:02:07]} g6 {[%emt 0:01:19]} 29. c5 {[%emt 0:01:11]} Ne4 {[%emt 0:01:11]} 30. Kf3 {[%emt 0:02:39] Weighted Error Value: White=0.07 (flawless) /Black=0.08 (flawless) .  Inaccurate:     	White=3     	Black=1      OK:         	White=10    	Black=8      Best:        	---       	Black=1      Strong:       	White=1     	---} 1/2-1/2

[Event "MCC Labor Day Schev 2024"]
[Site "New York"]
[Date "2024.08.31"]
[Round "4.3"]
[White "Podavonov, Alisher"]
[Black "Stern, Kevin B"]
[Result "1-0"]
[ECO "D37"]
[WhiteElo "2140"]
[BlackElo "1920"]
[Annotator "NA RC"]
[PlyCount "129"]
[EventDate "2024.08.28"]
[EventType "schev"]
[EventCountry "USA"]
[SourceTitle "playchess.com"]
[Source "ChessBase"]
[SourceQuality "1"]
[TimeControl "5400+30"]

1. d4 {[%emt 0:19:43]} d5 {[%emt 0:00:09]} 2. Nf3 {[%emt 0:00:17]} Nf6 {[%emt 0:00:08]} 3. c4 {[%emt 0:00:03]} e6 {[%emt 0:00:09]} 4. Nc3 {[%emt 0:00:17]} a6 {[%emt 0:00:08]} 5. cxd5 {[%emt 0:00:24]} exd5 {[%emt 0:00:08]} 6. Bg5 {[%emt 0:00:16]} Be6 {[%emt 0:00:07]} 7. Bxf6 {[%emt 0:02:13]} Qxf6 {[%emt 0:00:08]} 8. Qb3 {[%emt 0:00:04]} Ra7 {[%emt 0:00:06]} 9. Rc1 {[%emt 0:02:44]} Qd8 {[%emt 0:01:34]} 10. e3 {[%emt 0:00:49]} c6 {[%emt 0:00:46]} 11. Bd3 {[%emt 0:02:32]} Nd7 {[%emt 0:01:49]} 12. h4 {[%emt 0:02:13]} h6 {[%emt 0:03:08]} 13. Bb1 {[%emt 0:05:49]} Bd6 {[%emt 0:03:17]} 14. Qc2 {[%emt 0:03:19]} Nf6 {[%emt 0:07:09]} 15. Na4 {[%emt 0:06:57]} Bb4+ {[%emt 0:04:59]} 16. Kf1 {[%emt 0:02:44]} Ne4 {[%emt 0:03:03]} 17. Nc5 {[%emt 0:04:00]} Bf5 {[%emt 0:08:45]} 18. Nxe4 {[%emt 0:02:49]} Bxe4 {[%emt 0:00:59]} 19. Qb3 {[%emt 0:01:08]} Qe7 {[%emt 0:02:18]} 20. a3 {[%emt 0:04:56]} Bd6 {[%emt 0:03:50]} 21. Qb6 {[%emt 0:04:14]} Bb8 {[%emt 0:01:52]} 22. Rxc6 {[%emt 0:02:39]} O-O {[%emt 0:02:38]} 23. Rc1 {[%emt 0:01:33]} Bxb1 {[%emt 0:00:27]} 24. Rxb1 {[%emt 0:00:01]} Rc8 {[%emt 0:02:23]} 25. Qb3 {[%emt 0:03:05]} Qe4 {[%emt 0:02:10]} 26. Nd2 {[%emt 0:02:47]} Qf5 {[%emt 0:05:05]} 27. Ke2 {[%emt 0:03:39]} b5 {[%emt 0:02:23]} 28. Rhc1 {[%emt 0:05:16]} Rac7 {[%emt 0:01:07]} 29. Rxc7 {[%emt 0:00:09]} Rxc7 {[%emt 0:00:09]} 30. g3 {[%emt 0:05:23]} Rc2 {[%emt 0:05:43]} 31. Qd3 {[%emt 0:01:55]} Qh5+ {[%emt 0:04:06]} 32. Kf1 {[%emt 0:01:46]} Rc6 {[%emt 0:00:34]} 33. Kg2 {[%emt 0:00:59]} Qg4 {[%emt 0:02:54]} 34. Re1 {[%emt 0:01:11]} Rg6 {[%emt 0:03:44]} 35. Nf1 {[%emt 0:02:31]} Rf6 {[%emt 0:01:48]} 36. Qe2 {[%emt 0:00:15]} Qe4+ {[%emt 0:02:17]} 37. Kg1 {[%emt 0:00:04]} Rc6 {[%emt 0:03:33]} 38. Nd2 {[%emt 0:00:59]} Qg6 {[%emt 0:01:06]} 39. Qf3 {[%emt 0:00:25]} Rf6 {[%emt 0:01:00]} 40. Qg2 {[%emt 0:00:46]} Qc2 {[%emt 0:01:02]} 41. Re2 {[%emt 0:02:29]} Qd1+ {[%emt 0:02:39]} 42. Qf1 {[%emt 0:00:06]} Qxf1+ {[%emt 0:00:05]} 43. Nxf1 {[%emt 0:00:12]} Rc6 {[%emt 0:00:10]} 44. Kg2 {[%emt 0:00:45]} Bd6 {[%emt 0:01:03]} 45. Kf3 {[%emt 0:00:08]} g5 {[%emt 0:01:59]} 46. hxg5 {[%emt 0:00:06]} hxg5 {[%emt 0:00:01]} 47. Kg4 {[%emt 0:00:54]} f6 {[%emt 0:01:08]} 48. Kf5 {[%emt 0:00:16]} Kg7 {[%emt 0:00:52]} 49. Nh2 {[%emt 0:00:09]} a5 {[%emt 0:00:48]} 50. Nf3 {[%emt 0:00:44]} Bf8 {[%emt 0:01:16]} 51. Ne1 {[%emt 0:00:22]} b4 {[%emt 0:01:16]} 52. axb4 {[%emt 0:00:31]} axb4 {[%emt 0:00:07]} 53. Rc2 {[%emt 0:00:14]} Rc4 {[%emt 0:02:39]} 54. b3 {[%emt 0:01:00]} Rxc2 {[%emt 0:00:44]} 55. Nxc2 {[%emt 0:00:01]} Kf7 {[%emt 0:00:06]} 56. Ne1 {[%emt 0:00:39]} Bd6 {[%emt 0:00:36]} 57. Nd3 {[%emt 0:00:15]} Be7 {[%emt 0:00:38]} 58. Nc5 {[%emt 0:00:26]} Bd8 {[%emt 0:01:16]} 59. Na6 {[%emt 0:00:11]} Ba5 {[%emt 0:00:14]} 60. Nb8 {[%emt 0:01:25]} Bc7 {[%emt 0:00:29]} 61. Nd7 {[%emt 0:02:34]} Bd8 {[%emt 0:00:55]} 62. g4 {[%emt 0:00:28]} Bc7 {[%emt 0:02:05]} 63. Nxf6 {[%emt 0:00:09]} Bh2 {[%emt 0:00:03]} 64. Nxd5 {[%emt 0:00:15]} Bg1 {[%emt 0:00:03]} 65. f3 {[%emt 0:00:13]} 1-0

[Event "MCC Labor Day Schev 2024"]
[Site "New York"]
[Date "2024.08.31"]
[Round "4.4"]
[White "Colas, Joshua"]
[Black "Aravindakshan, Sahana"]
[Result "1-0"]
[ECO "E60"]
[WhiteElo "2224"]
[BlackElo "2003"]
[Annotator "TA"]
[PlyCount "87"]
[EventDate "2024.08.28"]
[EventType "schev"]
[EventCountry "USA"]
[SourceTitle "playchess.com"]
[Source "ChessBase"]
[SourceQuality "1"]
[TimeControl "5400+30"]

{[%evp 12,87,22,22,28,28,33,39,40,28,38,31,43,0,0,0,14,-32,27,31,30,16,20,20,35,26,44,43,60,49,99,99,102,96,91,92,104,30,35,32,35,24,21,15,38,37,47,37,46,55,50,6,45,41,39,40,170,111,109,117,278,208,267,247,259,233,823,797,29984,29985,29997,29986,29986,29987,29987,29987,29988,29989]} 1. Nf3 {[%emt 0:06:54]} Nf6 {[%emt 0:00:06]} 2. c4 {[%emt 0:00:26]} g6 {[%emt 0:00:09]} 3. b3 {[%emt 0:00:28]} Bg7 {[%emt 0:00:10]} 4. Bb2 {[%emt 0:00:03]} O-O {[%emt 0:00:18]} 5. g3 {[%emt 0:00:07]} d6 {[%emt 0:00:38]} 6. d4 {[%emt 0:00:06]} c6 {[%emt 0:05:17]} 7. Bg2 {[%emt 0:00:13]} Qc7 {[%emt 0:05:37]} 8. O-O {[%emt 0:00:35]} Bg4 {[%emt 0:03:13]} 9. h3 {[%emt 0:01:51]} Bxf3 {[%emt 0:00:08] White is slightly better.} 10. Bxf3 {[%emt 0:00:18]} e5 {[%emt 0:03:24]} 11. Nc3 {[%emt 0:03:08]} Re8 {[%emt 0:13:27]} 12. dxe5 {[%emt 0:03:30]} dxe5 {[%emt 0:00:25]} 13. Qc2 {[%emt 0:05:19]} Nbd7 {[%emt 0:02:11][%cal Oe5e4]} 14. b4 {[%emt 0:01:24]} (14. Rab1 $11) 14... Nf8 {[%emt 0:11:00]} (14... e4 $15 15. Bg2 (15. Bxe4 $2 {too greedy.} Nxe4 16. Nxe4 Bxb2 $19) 15... a5) 15. e3 {[%emt 0:01:56]} N6d7 {[%emt 0:07:31]} 16. g4 {[%emt 0:01:30]} Ne6 {[%emt 0:04:55]} 17. Bg2 {[%emt 0:02:56]} Rf8 {[%emt 0:02:28]} 18. Qb3 {[%emt 0:01:43]} Qd8 {[%emt 0:10:42]} 19. Rad1 {[%emt 0:00:54]} Qe7 {[%emt 0:02:40]} 20. Ba3 {[%emt 0:01:19]} Rfd8 {[%emt 0:01:58]} ({Black should try} 20... Rad8 $14) 21. b5 $16 {[%emt 0:00:18] White is more active.} Ndc5 {[%emt 0:03:03]} 22. bxc6 {[%emt 0:00:39]} bxc6 {[%emt 0:03:20]} 23. Ne4 {[%emt 0:01:32]} Bf8 {[%emt 0:04:05]} 24. Qc2 {[%emt 0:04:23]} (24. Nxc5 $16 Nxc5 25. Bxc6) 24... Qc7 $11 {[%emt 0:02:31]} 25. Bb2 {[%emt 0:01:56]} Bg7 {[%emt 0:01:28] Dodges Nf6+} 26. h4 {[%emt 0:02:30]} Nxe4 {[%emt 0:01:43]} 27. Qxe4 {[%emt 0:00:25]} Rac8 {[%emt 0:00:29]} 28. Rxd8+ {[%emt 0:00:53]} Qxd8 {[%emt 0:00:21]} 29. g5 {[%emt 0:01:10]} Nc5 {[%emt 0:02:09]} 30. Qg4 {[%emt 0:00:47]} Rb8 {[%emt 0:05:10]} 31. Ba1 {[%emt 0:01:13]} Qa5 {[%emt 0:02:01]} (31... Qd3 {with more complications.} 32. Bxc6 Rb1 33. Qh3 Ne4) 32. Bxc6 {[%emt 0:01:11]} Qxa2 {[%emt 0:00:07]} 33. Bd5 {[%emt 0:00:29] A strong pair of Bishops.} Qa5 {[%emt 0:01:10] [#]} (33... Qc2 $14) 34. h5 {[%emt 0:01:04]} ({Better is} 34. f4 $1 $18 {[%cal Rf4e5]}) 34... gxh5 $16 {[%emt 0:01:34]} 35. Qxh5 {[%emt 0:00:34]} Qc7 {[%emt 0:00:33]} (35... Ne6 $16 {is a better defense.}) 36. Kg2 {[%emt 0:00:53] Rh1 is the strong threat.} Ne6 {[%emt 0:01:22]} 37. Rh1 {[%emt 0:00:35][%cal Bf1h1,Bh1h3,Bh3f3,Bf3f7][%mdl 32]} Nf8 {[%emt 0:00:27]} 38. Rh3 {[%emt 0:00:44]} Rb1 $2 {[%emt 0:01:05] [#]} (38... a5 39. Bc3 a4) 39. Rf3 $1 $18 {[%emt 0:00:35][%cal Rf3f7]} Kh8 {[%emt 0:00:28]} (39... Rb7 40. Rxf7) 40. Rxf7 {[%emt 0:00:10] White mates.} Qa5 {[%emt 0:00:27]} 41. Rxg7 {[%emt 0:00:15][%csl Gd5][%cal Rg7g8]} Qxd5+ {[%emt 0:00:35]} 42. cxd5 {[%emt 0:00:07]} Kxg7 {[%emt 0:00:05]} 43. Bxe5+ {[%emt 0:00:10]} Kg8 {[%emt 0:00:09]} 44. Qe8 {[%emt 0:00:15] Weighted Error Value: White=0.13 (very precise) /Black=0.41.  Loses game:     	---       	Black=1      Mistake:       	White=3     	Black=4      Inaccurate:     	White=2     	Black=2      OK:         	White=12    	Black=7      Best:        	White=4     	Black=3} 1-0

[Event "MCC Labor Day Schev 2024"]
[Site "New York"]
[Date "2024.08.31"]
[Round "4.5"]
[White "Sarkar, Justin"]
[Black "Sloan, Jed"]
[Result "0-1"]
[ECO "A22"]
[WhiteElo "2276"]
[BlackElo "2039"]
[Annotator "TA"]
[PlyCount "64"]
[EventDate "2024.08.28"]
[EventType "schev"]
[EventCountry "USA"]
[SourceTitle "playchess.com"]
[Source "ChessBase"]
[SourceQuality "1"]
[TimeControl "5400+30"]

{[%evp 9,64,66,63,87,68,81,75,35,76,62,79,64,78,48,52,68,72,73,74,77,73,74,149,129,140,122,185,185,199,200,217,217,211,220,313,265,317,315,323,356,349,332,354,335,527,559,543,524,809,809,809,802,802,802,802,802,802]} 1. c4 {[%emt 0:00:38]} e5 {[%emt 0:00:11]} 2. Nc3 {[%emt 0:00:09]} Nf6 {[%emt 0:00:25]} 3. Nf3 {[%emt 0:00:27]} e4 {[%emt 0:00:41]} 4. Ng5 {[%emt 0:00:10]} c6 {[%emt 0:00:26]} 5. Qa4 {[%emt 0:01:28]} Be7 {[%emt 0:19:27][%cal Ob7b5]} 6. Ngxe4 {[%emt 0:01:35]} Nxe4 {[%emt 0:02:09]} 7. Nxe4 {[%emt 0:00:05]} O-O {[%emt 0:04:51]} 8. c5 {[%emt 0:07:12] White is better.} f5 {[%emt 0:18:26]} 9. Nc3 {[%emt 0:08:47]} d6 {[%emt 0:05:03]} 10. cxd6 {[%emt 0:13:30]} Qxd6 {[%emt 0:04:20]} 11. e3 {[%emt 0:02:07]} b5 {[%emt 0:03:23]} 12. Qc2 {[%emt 0:01:15]} Qg6 {[%emt 0:02:47] White now steadily converts the win.} 13. g3 {[%emt 0:04:31]} Na6 {[%emt 0:06:36]} 14. a3 {[%emt 0:00:08] Dodges Nb4} Be6 {[%emt 0:01:58]} 15. Bg2 {[%emt 0:07:05][%cal Bf1g2,Bg2e4,Be4h7][%mdl 32]} Nc5 {[%emt 0:04:35] [#]} ({Black should try} 15... Rad8) 16. b4 $1 $16 {[%emt 0:00:15]} Ne4 {[%emt 0:03:00]} 17. Nxe4 {[%emt 0:00:40]} fxe4 {[%emt 0:00:17]} (17... Bd5 $16) 18. Bxe4 $18 {[%emt 0:01:43]} (18. Qxe4 Qf6 19. O-O Bc4) 18... Qf6 {[%emt 0:00:49]} 19. d4 {[%emt 0:00:59]} (19. Bxh7+ Kh8 20. O-O (20. d4 $2 Bb3 $19) 20... Qxa1 $17) 19... Bc4 {[%emt 0:00:56]} 20. Bxh7+ {[%emt 0:02:56]} Kh8 {[%emt 0:00:05][%cal Oc4b3]} 21. f4 {[%emt 0:00:15]} ({Much less strong is} 21. Be4 Rae8 $16) 21... Rae8 {[%emt 0:03:11]} (21... Qe6 $142 22. Bd3 a5) 22. Bg6 {[%emt 0:03:07]} Rd8 {[%emt 0:05:31]} 23. Bd3 {[%emt 0:02:45]} c5 {[%emt 0:05:41]} 24. Bxc4 {[%emt 0:09:00]} bxc4 {[%emt 0:00:38]} 25. bxc5 {[%emt 0:00:05]} Bxc5 {[%emt 0:00:47]} 26. O-O {[%emt 0:00:13]} Bxd4 {[%emt 0:01:18]} (26... Rxd4 {was necessary.} 27. Bb2 (27. exd4 Bxd4+ $18) 27... c3) 27. exd4 {[%emt 0:00:30] White is clearly winning.} Qxd4+ {[%emt 0:00:08]} 28. Qf2 {[%emt 0:07:24]} Qxa1 {[%emt 0:00:36]} 29. Bb2 {[%emt 0:00:03]} (29. Qxa7 $2 {too greedy.} Qc3 30. f5 Qe5 $19) 29... Qxf1+ {[%emt 0:00:20]} 30. Qxf1 {[%emt 0:00:18]} Rd3 {[%emt 0:00:26]} 31. Qh3+ {[%emt 0:01:09]} Kg8 {[%emt 0:00:05]} 32. Qe6+ {[%emt 0:00:12]} Rf7 {[%emt 0:00:12][%mdl 32768] Weighted Error Value: White=0.08 (flawless) /Black=0.37.  Mistake:       	---       	Black=4      Inaccurate:     	White=2     	Black=2      OK:         	White=12    	Black=4      Best:        	White=1     	Black=1      Strong:       	White=1     	---       . Loss on time!?} 0-1

[Event "MCC Labor Day Schev 2024"]
[Site "New York"]
[Date "2024.08.31"]
[Round "4.6"]
[White "Gaw, Chloe"]
[Black "Nasta, Kiren Vivek"]
[Result "1/2-1/2"]
[ECO "D85"]
[WhiteElo "1981"]
[BlackElo "2148"]
[Annotator "RC"]
[PlyCount "50"]
[EventDate "2024.08.28"]
[EventType "schev"]
[EventCountry "USA"]
[SourceTitle "playchess.com"]
[Source "ChessBase"]
[SourceQuality "1"]
[TimeControl "5400+30"]

1. d4 {[%emt 0:00:02]} Nf6 {[%emt 0:00:15]} 2. c4 {[%emt 0:00:04]} g6 {[%emt 0:00:02]} 3. Nc3 {[%emt 0:00:03]} d5 {[%emt 0:00:03]} 4. cxd5 {[%emt 0:00:09]} Nxd5 {[%emt 0:00:04]} 5. e4 {[%emt 0:00:06]} Nxc3 {[%emt 0:00:04]} 6. bxc3 {[%emt 0:00:04]} Bg7 {[%emt 0:00:04]} 7. Qa4+ {[%emt 0:00:07]} Nd7 {[%emt 0:00:04]} 8. Nf3 {[%emt 0:00:06]} O-O {[%emt 0:00:04]} 9. Be2 {[%emt 0:00:03]} Nb6 {[%emt 0:00:04]} 10. Qa3 {[%emt 0:00:29]} Qd6 {[%emt 0:00:05]} 11. O-O {[%emt 0:02:10]} Be6 {[%emt 0:00:21]} 12. Rd1 {[%emt 0:06:00]} Qxa3 {[%emt 0:02:29]} 13. Bxa3 {[%emt 0:00:04]} Rfe8 {[%emt 0:00:15]} 14. Nd2 {[%emt 0:20:42]} c5 {[%emt 0:15:38]} 15. Bxc5 {[%emt 0:09:44]} Na4 {[%emt 0:00:05]} 16. Bb5 {[%emt 0:01:35]} Nxc3 {[%emt 0:00:29]} 17. Bxe8 {[%emt 0:00:27]} Rxe8 {[%emt 0:10:35]} 18. Bxa7 {[%emt 0:08:35]} Nxd1 {[%emt 0:02:29]} 19. Rxd1 {[%emt 0:00:04]} Ra8 {[%emt 0:01:53]} 20. Bc5 {[%emt 0:01:29]} Rxa2 {[%emt 0:00:09]} 21. Nf3 {[%emt 0:03:19]} Bb3 {[%emt 0:02:33]} 22. Rc1 {[%emt 0:05:40]} e6 {[%emt 0:03:33]} 23. Bd6 {[%emt 0:04:31]} Ra8 {[%emt 0:06:42]} 24. h3 {[%emt 0:04:41]} Ba4 {[%emt 0:02:44]} 25. Rc7 {[%emt 0:02:53]} h6 {[%emt 0:05:08]} 1/2-1/2

[Event "MCC Labor Day Schev 2024"]
[Site "New York"]
[Date "2024.08.31"]
[Round "4.7"]
[White "Shangin, Lev"]
[Black "Khodzhamkuliev, Bahadur"]
[Result "1/2-1/2"]
[ECO "A41"]
[WhiteElo "1974"]
[BlackElo "2187"]
[Annotator "RC"]
[PlyCount "40"]
[EventDate "2024.08.28"]
[EventType "schev"]
[EventCountry "USA"]
[SourceTitle "playchess.com"]
[Source "ChessBase"]
[SourceQuality "1"]
[TimeControl "5400+30"]

1. d4 {[%emt 0:00:07]} g6 {[%emt 0:04:54]} 2. e4 {[%emt 0:02:13]} Bg7 {[%emt 0:00:07]} 3. c4 {[%emt 0:02:13]} d6 {[%emt 0:00:15]} 4. Nf3 {[%emt 0:01:08]} Bg4 {[%emt 0:02:37]} 5. d5 {[%emt 0:05:50]} Nf6 {[%emt 0:00:55]} 6. Nc3 {[%emt 0:00:20]} Nbd7 {[%emt 0:00:30]} 7. Be2 {[%emt 0:01:01]} Bxf3 {[%emt 0:00:31]} 8. Bxf3 {[%emt 0:00:03]} O-O {[%emt 0:01:11]} 9. Be3 {[%emt 0:01:56]} a5 {[%emt 0:01:21]} 10. Be2 {[%emt 0:02:07]} e5 {[%emt 0:02:01]} 11. Qc2 {[%emt 0:01:21]} Nc5 {[%emt 0:03:33]} 12. O-O {[%emt 0:01:56]} Nfd7 {[%emt 0:03:07]} 13. b3 {[%emt 0:01:50]} f5 {[%emt 0:01:15]} 14. f3 {[%emt 0:00:30]} fxe4 {[%emt 0:00:58]} 15. fxe4 {[%emt 0:00:37]} Qh4 {[%emt 0:01:43]} 16. g3 {[%emt 0:05:13]} Qh3 {[%emt 0:01:21]} 17. Rxf8+ {[%emt 0:03:59]} Rxf8 {[%emt 0:02:21]} 18. Bf1 {[%emt 0:00:34]} Qh5 {[%emt 0:01:49]} 19. Be2 {[%emt 0:00:32]} Qh3 {[%emt 0:00:11]} 20. Bf1 {[%emt 0:00:06]} Qh5 {[%emt 0:00:05]} 1/2-1/2

[Event "MCC Labor Day Schev 2024"]
[Site "New York"]
[Date "2024.08.31"]
[Round "4.8"]
[White "Zaderman, Vitaly"]
[Black "Patel, Maahir M"]
[Result "1-0"]
[ECO "D37"]
[WhiteElo "2093"]
[BlackElo "2005"]
[Annotator "NA RC"]
[PlyCount "59"]
[EventDate "2024.08.28"]
[EventType "schev"]
[EventCountry "USA"]
[SourceTitle "playchess.com"]
[Source "ChessBase"]
[SourceQuality "1"]
[TimeControl "5400+30"]

1. c4 {[%emt 0:00:10]} e6 {[%emt 0:01:12]} 2. Nc3 {[%emt 0:00:25]} d5 {[%emt 0:00:14]} 3. d4 {[%emt 0:00:08]} Nf6 {[%emt 0:00:18]} 4. e3 {[%emt 0:00:21]} Be7 {[%emt 0:00:08]} 5. Nf3 {[%emt 0:00:12]} O-O {[%emt 0:00:09]} 6. Bd3 {[%emt 0:00:06]} dxc4 {[%emt 0:00:18]} 7. Bxc4 {[%emt 0:00:06]} a6 {[%emt 0:00:17]} 8. O-O {[%emt 0:00:35]} b5 {[%emt 0:00:09]} 9. Bd3 {[%emt 0:00:13]} Bb7 {[%emt 0:00:13]} 10. a3 {[%emt 0:01:53]} Nbd7 {[%emt 0:01:05]} 11. b4 {[%emt 0:07:38]} Bd6 {[%emt 0:04:21]} 12. Bb2 {[%emt 0:01:13]} Qe7 {[%emt 0:02:38]} 13. e4 {[%emt 0:03:35]} e5 {[%emt 0:00:48]} 14. d5 {[%emt 0:01:34]} c6 {[%emt 0:01:42]} 15. Re1 {[%emt 0:00:25]} Nb6 {[%emt 0:02:18]} 16. Bf1 {[%emt 0:00:39]} cxd5 {[%emt 0:01:30]} 17. exd5 {[%emt 0:00:21]} Nbxd5 {[%emt 0:15:02]} 18. Nxd5 {[%emt 0:00:30]} Bxd5 {[%emt 0:00:43]} 19. Nxe5 {[%emt 0:00:33]} Qb7 {[%emt 0:00:54]} 20. Qd4 {[%emt 0:05:44]} Qc8 {[%emt 0:08:46]} 21. h3 {[%emt 0:01:57]} h5 {[%emt 0:08:06]} 22. Bd3 {[%emt 0:13:39]} Qb7 {[%emt 0:01:54]} 23. Rad1 {[%emt 0:10:15]} Rfd8 {[%emt 0:03:02]} 24. Qh4 {[%emt 0:12:38]} Bxg2 {[%emt 0:11:37]} 25. Qg5 {[%emt 0:12:34]} Bxh3 {[%emt 0:01:49]} 26. Nc6 {[%emt 0:02:00]} Qxc6 {[%emt 0:00:59]} 27. Bxf6 {[%emt 0:00:23]} Bf8 {[%emt 0:00:05]} 28. Bxd8 {[%emt 0:24:43]} Rxd8 {[%emt 0:00:06]} 29. Bh7+ {[%emt 0:00:00]} Kxh7 {[%emt 0:00:17]} 30. Rxd8 {[%emt 0:00:00]} 1-0